fUST/lending_fUST_20260326
["ID","MTS","AMOUNT","RATE_DAILY","PERIOD"]
[23377,1774508065368,-137.86776152,7.2e-05,2]
[23378,1774508066229,-362.13223848,7.2e-05,2]
[23379,1774508066250,-166.5798163,7.271e-05,2]
[23380,1774508066270,-471.28794522,7.276e-05,2]
[23381,1774508066354,-28.71205478,7.276e-05,2]
[23382,1774508066375,-206.170355,7.278e-05,2]
[23383,1774508066395,-206.170355,7.278e-05,2]
[23384,1774508066417,-206.170355,7.278e-05,2]
[23385,1774508066438,-206.170355,7.278e-05,2]
[23386,1774508066464,-146.60652522,7.341e-05,2]
[23387,1774508066491,-453.39347478,7.341e-05,2]
[23388,1774508066512,-546.60652522,7.362e-05,2]
[23389,1774508066866,-1000.0,7.362e-05,2]
[23390,1774508068352,-1000.0,7.362e-05,2]
[23391,1774508068796,-757.94560699,7.362e-05,2]
[23392,1774508068818,-242.05439301,7.381e-05,2]
[23393,1774508069245,-257.94560699,7.381e-05,2]
[23394,1774508069266,-742.05439301,7.421e-05,2]
[23395,1774508069574,-1000.0,7.421e-05,2]
[23396,1774508069914,-1000.0,7.421e-05,2]
[23397,1774508070889,-1000.0,7.421e-05,2]
[23398,1774508071322,-1000.0,7.421e-05,2]
[23399,1774508072436,-1000.0,7.421e-05,2]
[23400,1774508077578,-1000.0,7.421e-05,2]
[23401,1774508077913,-1000.0,7.421e-05,2]
[23402,1774508078233,-1000.0,7.421e-05,2]
[23403,1774508078535,-1000.0,7.421e-05,2]
[23404,1774508078879,-997.61341249,7.421e-05,2]
[23405,1774508078903,-2.38658751,7.422e-05,2]
[23406,1774508081901,-497.61341249,7.422e-05,2]
[23407,1774508081925,-500.0,7.494e-05,2]
[23408,1774508099820,-500.0,7.237e-05,2]
[23409,1774508099853,-500.0,7.502e-05,2]
[23410,1774508101559,-147.28087269,7.502e-05,2]
[24968,1774508393767,-469.30213465,7.205e-05,2]
[24969,1774508393789,-500.511012,7.358e-05,2]
[24970,1774508393810,-30.18685335,7.561e-05,2]
[24971,1774508395118,-814.55698901,7.561e-05,2]
[25155,1774508460906,-1000.0,7.369e-05,2]
[25871,1774508498560,-61.2772376,7.369e-05,2]
[26421,1774508866593,-324.6804107,6.872e-05,2]
[26422,1774508866615,-324.7096522,6.872e-05,2]
[26423,1774508866639,-350.6099371,7.372e-05,2]
[26424,1774508872257,-450.0,7.372e-05,2]
[26425,1774508887904,-985.5644039,7.372e-05,2]
[26426,1774508888371,14.4355961,7.118e-05,2]
[26427,1774508891618,-136.673239,7.118e-05,2]
[26483,1774508970165,-160.0,7.118e-05,2]
[26527,1774508981289,-36.117482,7.118e-05,2]
[26528,1774508981311,-151.0,7.118e-05,2]
[26529,1774508981331,-151.0257013,7.118e-05,2]
[26530,1774508981353,-151.0,7.118e-05,2]
[26548,1774509031722,-190.6174382,7.118e-05,2]
[26549,1774509031731,-530.80580194,7.408e-05,4]
[26551,1774509031741,-2185.29543275,7.6e-05,2]
[26705,1774509037904,-196.0790671,7.118e-05,2]
[26706,1774509037914,-4270.57113159,7.6e-05,2]
[26707,1774509037923,-164.32112433,7.638e-05,2]
[26708,1774509037933,-528.0,7.638e-05,2]
[26709,1774509037942,-1200.0,7.674e-05,2]
[26710,1774509037953,-1165.10557085,7.675e-05,2]
[26711,1774509037962,-1501.76683086,7.681e-05,2]
[26712,1774509037972,-512.71014961,7.718e-05,2]
[26713,1774509037981,-922.87826929,7.718e-05,2]
[26714,1774509037991,-190.1885581,7.816e-05,2]
[26715,1774509038000,-151.0,7.834e-05,2]
[26716,1774509038010,-1824.094226,7.903e-05,2]
[26717,1774509038020,-284.29591271,7.932e-05,4]
[26718,1774509038030,-300.0,7.934e-05,2]
[26719,1774509038039,-300.0,7.934e-05,2]
[26720,1774509038049,-300.0,7.934e-05,2]
[26721,1774509038058,-196.1530332,7.937e-05,2]
[26722,1774509038067,-324.7756632,7.937e-05,2]
[26723,1774509038076,-454.8826331,7.937e-05,2]
[26724,1774509038086,-196.1530332,7.937e-05,2]
[26725,1774509038095,-324.8016536,7.937e-05,2]
[26726,1774509038104,-324.7096522,7.937e-05,2]
[26727,1774509038114,-399.6535137,7.937e-05,2]
[26728,1774509038123,-454.8253735,7.937e-05,2]
[26729,1774509038132,-324.7426577,7.937e-05,2]
[26730,1774509038142,-324.7096523,7.937e-05,2]
[26731,1774509038151,-223.336694,7.937e-05,2]
[26732,1774509038160,-454.8826331,7.937e-05,2]
[26733,1774509038169,-324.698185,7.937e-05,2]
[26734,1774509038178,-454.9280236,7.937e-05,2]
[26735,1774509038187,-454.9280235,7.937e-05,2]
[26736,1774509038196,-196.145294,7.94e-05,2]
[26737,1774509038205,-196.1530332,7.94e-05,2]
[26738,1774509038214,-151.0,7.94e-05,2]
[26739,1774509038223,-196.1748999,7.94e-05,2]
[26740,1774509038232,-151.4079762,7.94e-05,2]
[26741,1774509038242,-151.0,7.94e-05,2]
[26742,1774509038251,-217.2201368,7.94e-05,2]
[26743,1774509038260,-196.1145552,7.94e-05,2]
[26744,1774509038269,-196.1352576,7.94e-05,2]
[26745,1774509038278,-196.1530333,7.94e-05,2]
[26746,1774509038288,-324.7756632,7.94e-05,2]
[26747,1774509038298,-324.7325339,7.94e-05,2]
[26748,1774509038307,-196.1530332,7.94e-05,2]
[26749,1774509038316,-325.7014796,7.94e-05,2]
[26750,1774509038325,-324.6889894,7.94e-05,2]
[26751,1774509038334,-324.7865589,7.94e-05,2]
[26752,1774509038343,-325.4122578,7.94e-05,2]
[26753,1774509038352,-454.9280236,7.94e-05,2]
[26754,1774509038428,-324.7756632,7.94e-05,2]
[26755,1774509038437,-324.7426577,7.94e-05,2]
[26756,1774509038447,-196.1530332,7.94e-05,2]
[26757,1774509038456,-454.9734141,7.94e-05,2]
[26758,1774509038465,-324.7756632,7.94e-05,2]
[26759,1774509038474,-196.1530332,7.94e-05,2]
[26760,1774509038484,-196.1708088,7.94e-05,2]
[26761,1774509038498,-324.7015764,7.94e-05,2]
[26762,1774509038507,-324.7756632,7.94e-05,2]
[26763,1774509038516,-455.6317992,7.94e-05,2]
[26764,1774509038527,-324.7345818,7.94e-05,2]
[26765,1774509038536,-454.9280236,7.94e-05,2]
[26766,1774509038545,-454.9280236,7.94e-05,2]
[26767,1774509038556,-324.7426577,7.94e-05,2]
[26768,1774509038566,-430.8055278,7.94e-05,2]
[26769,1774509038575,-454.9280236,7.94e-05,2]
[26770,1774509038584,-454.9280237,7.94e-05,2]
[26771,1774509038593,-324.6572867,7.94e-05,2]
[26772,1774509038603,-454.9280236,7.94e-05,2]
[26773,1774509038612,-324.7756632,7.94e-05,2]
[26774,1774509038621,-454.8426357,7.94e-05,2]
[26775,1774509038633,-454.9280236,7.94e-05,2]
[26776,1774509038642,-458.9223887,7.94e-05,2]
[26777,1774509038651,-2346.51067323,8.026e-05,2]
[26778,1774509038661,-1137.18365085,8.09e-05,4]
[26779,1774509038671,-300.0,8.098e-05,2]
[26780,1774509038680,-300.0,8.098e-05,2]
[26781,1774509038690,-300.0,8.098e-05,2]
[26782,1774509038700,-300.0,8.098e-05,2]
[26783,1774509038709,-300.0,8.098e-05,2]
[26784,1774509038719,-300.0,8.098e-05,2]
[26785,1774509038730,-300.0,8.098e-05,2]
[26786,1774509038741,-300.0,8.098e-05,2]
[26787,1774509038751,-300.0,8.098e-05,2]
[26788,1774509038761,-300.0,8.098e-05,2]
[26789,1774509038771,-300.0,8.098e-05,2]
[26790,1774509038780,-300.0,8.098e-05,2]
[26791,1774509038790,-300.0,8.098e-05,2]
[26792,1774509038799,-300.0,8.098e-05,2]
[26793,1774509038809,-300.0,8.098e-05,2]
[26794,1774509038819,-500.511012,8.193e-05,2]
[26795,1774509038828,-500.0,8.219e-05,2]
[26796,1774509038837,-503.82676611,8.219e-05,2]
[26797,1774509038848,-216.51724618,8.228e-05,4]
[26798,1774509038857,-1824.094226,8.235e-05,2]
[26799,1774509038867,-703.68255483,8.247e-05,4]
[26800,1774509038876,-2558.66321442,8.248e-05,4]
[26801,1774509038886,-600.0,8.259e-05,2]
[26802,1774509038895,-2071.29879262,8.289e-05,2]
[26803,1774509038904,-1266.6285987,8.317e-05,4]
[26804,1774509038914,-164.936284,8.344e-05,2]
[26805,1774509038923,-164.936284,8.344e-05,2]
[26806,1774509038932,-164.936284,8.344e-05,2]
[26807,1774509038942,-164.936284,8.344e-05,2]
[26808,1774509038951,-500.0,8.368e-05,2]
[26809,1774509038960,-500.0,8.368e-05,2]
[26810,1774509038970,-500.0,8.368e-05,2]
[26811,1774509038979,-500.0,8.368e-05,2]
[26812,1774509038989,-182.71383775,8.368e-05,2]
[26813,1774509038999,-500.0,8.368e-05,2]
[26814,1774509039009,-500.0,8.368e-05,2]
[26815,1774509039019,-500.0,8.368e-05,2]
[26816,1774509039029,-500.0,8.368e-05,2]
[26817,1774509039038,-500.0,8.368e-05,2]
[26818,1774509039047,-595.11918748,8.368e-05,2]
[26819,1774509039057,-500.0,8.368e-05,2]
[26820,1774509039067,-500.0,8.368e-05,2]
[26821,1774509039077,-500.0,8.368e-05,2]
[26822,1774509039086,-500.0,8.368e-05,2]
[26823,1774509039096,-500.0,8.368e-05,2]
[26824,1774509039105,-500.0,8.368e-05,2]
[26825,1774509039114,-500.0,8.368e-05,2]
[26826,1774509039124,-500.0,8.368e-05,2]
[26827,1774509039133,-500.0,8.368e-05,2]
[26828,1774509039142,-500.0,8.368e-05,2]
[26829,1774509039152,-500.0,8.368e-05,2]
[26830,1774509039161,-500.0,8.368e-05,2]
[26831,1774509039170,-500.0,8.368e-05,2]
[26832,1774509039180,-500.0,8.368e-05,2]
[26833,1774509039189,-500.0,8.368e-05,2]
[26834,1774509039198,-500.0,8.368e-05,2]
[26835,1774509039207,-500.0,8.368e-05,2]
[26836,1774509039217,-500.0,8.368e-05,2]
[26837,1774509039226,-500.0,8.368e-05,2]
[26838,1774509039235,-650.0,8.368e-05,2]
[26839,1774509039244,-500.0,8.368e-05,2]
[26840,1774509039253,-500.0,8.368e-05,2]
[26841,1774509039263,-500.0,8.368e-05,2]
[26842,1774509039273,-500.0,8.368e-05,2]
[26843,1774509039282,-500.0,8.368e-05,2]
[26844,1774509039293,-500.0,8.368e-05,2]
[26845,1774509039302,-500.0,8.368e-05,2]
[26846,1774509039313,-500.0,8.368e-05,2]
[26847,1774509039324,-500.0,8.368e-05,2]
[26848,1774509039334,-500.0,8.368e-05,2]
[26849,1774509039345,-500.0,8.368e-05,2]
[26850,1774509039355,-500.0,8.368e-05,2]
[26851,1774509039363,-500.0,8.368e-05,2]
[26852,1774509039372,-500.0,8.368e-05,2]
[26853,1774509039381,-500.0,8.368e-05,2]
[26854,1774509039392,-376.34288291,8.368e-05,2]
[26855,1774509039402,-500.0,8.368e-05,2]
[26856,1774509039412,-362.15,8.368e-05,2]
[26857,1774509039421,-500.0,8.368e-05,2]
[26858,1774509039431,-500.0,8.368e-05,2]
[26859,1774509039440,-500.0,8.368e-05,2]
[26860,1774509039449,-500.0,8.368e-05,2]
[26861,1774509039458,-500.0,8.368e-05,2]
[26863,1774509039468,-500.0,8.368e-05,2]
[26864,1774509039477,-500.0,8.368e-05,2]
[26866,1774509039487,-500.0,8.368e-05,2]
[26867,1774509039497,-259.35,8.368e-05,2]
[26869,1774509039506,-500.0,8.368e-05,2]
[26873,1774509039567,-500.0,8.368e-05,2]
[26875,1774509039576,-500.0,8.368e-05,2]
[26877,1774509039585,-500.0,8.368e-05,2]
[26878,1774509039595,-500.0,8.368e-05,2]
[26880,1774509039604,-293.13589635,8.368e-05,2]
[26882,1774509039613,-500.0,8.368e-05,2]
[26883,1774509039622,-500.0,8.368e-05,2]
[26885,1774509039631,-500.0,8.368e-05,2]
[26886,1774509039640,-500.0,8.368e-05,2]
[26888,1774509039650,-500.0,8.368e-05,2]
[26890,1774509039659,-2396.3437973,8.369e-05,2]
[26891,1774509039668,-3378.97536944,8.373e-05,2]
[26893,1774509039678,-2251.78417546,8.386e-05,4]
[26895,1774509039687,-4548.73460341,8.406e-05,4]
[26897,1774509039699,-24437.2298238,8.41e-05,2]
[26970,1774509041598,-151.0,7.118e-05,2]
[26971,1774509041607,-18.49198041,8.41e-05,2]
[26972,1774509041764,-1036.69859684,8.41e-05,2]
[26976,1774509043133,-15634.89624616,8.41e-05,2]
[26980,1774509050481,-1541.66666667,8.41e-05,2]
[27059,1774510232143,-519.0,7.015e-05,2]
[27060,1774510232158,-469.97827215,7.015e-05,2]
[27325,1774510246327,-856.5770144,7.015e-05,2]
[27326,1774510246336,-454.9280236,7.115e-05,2]
[27327,1774510246346,-324.7426577,7.115e-05,2]
[27328,1774510246356,-166.57636839,7.259e-05,2]
[27329,1774510246366,-403.74653528,7.366e-05,2]
[27330,1774510246375,-295.48224577,7.575e-05,2]
[27331,1774510246385,-454.7445736,7.937e-05,2]
[27332,1774510246394,-154.5030113,7.94e-05,2]
[27333,1774510246403,-300.0,7.949e-05,2]
[27334,1774510246413,-114.93179657,7.949e-05,2]
[27336,1774510246644,-1085.06820343,7.949e-05,2]
[27337,1774510246654,-1640.67247874,7.95e-05,2]
[27338,1774510246663,-2560.98719728,7.95e-05,2]
[27339,1774510246673,-1563.32359802,7.969e-05,2]
[27344,1774510261799,-559.89960976,7.969e-05,2]
[27345,1774510278546,-300.0,8.009e-05,2]
[27346,1774510278565,-300.0,8.01e-05,2]
[27347,1774510278576,-527.94512143,8.01e-05,2]
[27446,1774510888375,372.5,2.01e-05,2]
[27447,1774510930607,-559.89960976,7.192e-05,2]
[27448,1774510930632,-522.0,7.192e-05,2]
[27449,1774510930656,-856.5770144,7.47e-05,2]
[27450,1774510930678,-692.54384403,7.6e-05,2]
[27451,1774510930700,-1200.0,7.799e-05,2]
[27452,1774510930723,-300.0,7.799e-05,2]
[27453,1774510930747,-610.38237734,7.8e-05,2]
[27454,1774510930771,-1330.119572,7.8e-05,2]
[27455,1774510930862,-1534.00459097,7.8e-05,2]
[27456,1774510930885,-1480.47589712,7.8e-05,2]
[27457,1774510930907,-500.0,7.813e-05,2]
[27458,1774510930928,-500.0,7.813e-05,2]
[27459,1774510930949,-503.27841478,7.813e-05,2]
[27460,1774510930971,-500.0,7.813e-05,2]
[27461,1774510930994,-500.0,7.83e-05,2]
[27462,1774510931018,-500.0,7.83e-05,2]
[27463,1774510931041,-500.0,7.83e-05,2]
[27464,1774510931065,-500.0,7.83e-05,2]
[27465,1774510931089,-500.0,7.83e-05,2]
[27466,1774510931115,-292.64320163,7.83e-05,2]
[27467,1774510931140,-500.0,7.83e-05,2]
[27468,1774510931163,-500.0,7.83e-05,2]
[27469,1774510931186,-645.93215421,7.83e-05,2]
[27470,1774510931212,-500.0,7.83e-05,2]
[27471,1774510931236,-500.0,7.83e-05,2]
[27472,1774510931263,-500.0,7.83e-05,2]
[27473,1774510931287,-500.0,7.83e-05,2]
[27474,1774510931311,-500.0,7.83e-05,2]
[27475,1774510931335,-500.0,7.83e-05,2]
[27476,1774510931358,-500.0,7.83e-05,2]
[27477,1774510931381,-500.0,7.83e-05,2]
[27478,1774510931405,-500.0,7.83e-05,2]
[27479,1774510931428,-500.0,7.83e-05,2]
[27480,1774510931451,-500.0,7.83e-05,2]
[27481,1774510931473,-302.45245045,7.83e-05,2]
[27482,1774510931497,-500.0,7.83e-05,2]
[27483,1774510931520,-500.0,7.83e-05,2]
[27484,1774510931543,-500.0,7.83e-05,2]
[27485,1774510931566,-500.0,7.83e-05,2]
[27486,1774510931590,-338.15241579,7.83e-05,2]
[27487,1774510931614,-500.0,7.83e-05,2]
[27488,1774510931638,-500.0,7.83e-05,2]
[27489,1774510931662,-500.0,7.83e-05,2]
[27490,1774510931686,-500.0,7.83e-05,2]
[27491,1774510931709,-500.0,7.83e-05,2]
[27492,1774510931731,-500.0,7.83e-05,2]
[27493,1774510931964,-500.0,7.83e-05,2]
[27494,1774510931987,-514.345,7.83e-05,2]
[27495,1774510932009,-35812.81247858,7.831e-05,2]
[27496,1774510932030,-500.0,7.893e-05,2]
[27497,1774510932051,-500.0,7.893e-05,2]
[27498,1774510932073,-500.0,7.893e-05,2]
[27499,1774510932094,-504.39776535,7.893e-05,2]
[27500,1774510932116,-500.0,7.893e-05,2]
[27501,1774510932137,-502.59957908,7.893e-05,2]
[27502,1774510932159,-500.0,7.893e-05,2]
[27503,1774510932181,-480.22926697,7.893e-05,2]
[27504,1774510932203,-300.0,7.893e-05,2]
[27505,1774510932225,-231.84981184,7.893e-05,2]
[27506,1774510932250,-531985.3045557,7.91e-05,2]
[27680,1774511433863,-2599.547105,6.887e-05,2]
[27682,1774511433872,-518.0,6.887e-05,2]
[27684,1774511433881,-1550.766089,7.446e-05,2]
[27686,1774511433890,-300.0,7.551e-05,2]
[27688,1774511433900,-606.0,7.551e-05,2]
[27690,1774511433909,-3236.40436347,7.552e-05,2]
[27692,1774511433918,-812.51592542,7.552e-05,2]
[27696,1774511433941,-3061.15593286,7.552e-05,2]
[27698,1774511433952,-786.75042512,7.552e-05,2]
[27700,1774511433960,-332.96682049,7.552e-05,2]
[27861,1774511438207,-6004.04237937,7.552e-05,2]
[27862,1774511438218,-154.0,7.711e-05,2]
[27863,1774511438227,-194.12889095,7.711e-05,2]
[27864,1774511438236,-500.0,7.713e-05,2]
[27865,1774511438246,-500.0,7.713e-05,2]
[27866,1774511438255,-500.0,7.713e-05,2]
[27867,1774511438264,-500.0,7.713e-05,2]
[27868,1774511438274,-500.0,7.713e-05,2]
[27869,1774511438283,-500.0,7.73e-05,2]
[27870,1774511438292,-421.40480018,7.73e-05,2]
[27871,1774511438301,-482.01693509,7.73e-05,2]
[27872,1774511438311,-238.43690602,7.73e-05,2]
[27873,1774511438322,-96361.5167911,7.731e-05,2]
[27874,1774511438926,-48624.48086077,7.731e-05,2]
[27875,1774511438954,-941.81791522,7.731e-05,2]
[27876,1774511438971,-50686.54104647,7.731e-05,2]
[27925,1774511443592,-1179.67946753,7.731e-05,2]
[27926,1774511443606,-3256.23330091,7.731e-05,2]
[27927,1774511443621,-468.942,7.731e-05,2]
[27952,1774511446510,-2834.24028744,7.731e-05,2]
[27953,1774511446542,-276.5150003,7.731e-05,2]
[27954,1774511446555,-45966.56643804,7.731e-05,2]
[27974,1774512201823,-209.25306076,6.787e-05,2]
[27975,1774512201845,-500.0,6.787e-05,2]
[27976,1774512201866,-204.3220963,6.787e-05,2]
[27977,1774512201889,-86.42484294,6.787e-05,2]
[27978,1774512202875,-429.57515706,6.787e-05,2]
[27979,1774512224173,-300.0,7.151e-05,2]
[27980,1774512224195,-300.0,7.152e-05,2]
[27981,1774512224216,-300.0,7.152e-05,2]
[27982,1774512224239,-100.0,7.152e-05,2]
[27983,1774512225125,-1000.0,7.152e-05,2]
[27984,1774512225452,-100.0,7.152e-05,2]
[27985,1774512225475,-500.0,7.153e-05,2]
[27986,1774512225497,-400.0,7.153e-05,2]
[27987,1774512225766,-100.0,7.153e-05,2]
[27988,1774512225789,-256.9190087,7.153e-05,2]
[27989,1774512225810,-500.4097529,7.153e-05,2]
[27990,1774512225832,-142.6712384,7.153e-05,2]
[27991,1774512226101,-361.63746002,7.153e-05,2]
[27992,1774512226124,-506.36458722,7.153e-05,2]
[27993,1774512226146,-131.99795276,7.153e-05,2]
[27994,1774512226422,-368.29644146,7.153e-05,2]
[27995,1774512226443,-502.57896594,7.153e-05,2]
[27996,1774512226464,-129.1245926,7.153e-05,2]
[27997,1774512226810,-370.8754074,7.153e-05,2]
[27998,1774512226833,-500.0,7.153e-05,2]
[27999,1774512226856,-129.1245926,7.153e-05,2]
[28000,1774512227174,-370.8754074,7.153e-05,2]
[28001,1774512227280,-152.76355866,7.174e-05,2]
[28002,1774512227304,-476.36103394,7.174e-05,2]
[28003,1774512227481,-23.63896606,7.174e-05,2]
[28004,1774512227506,-500.0,7.174e-05,2]
[28005,1774512227529,-476.36103394,7.174e-05,2]
[28006,1774512230346,-23.63896606,7.174e-05,2]
[28007,1774512230371,-500.0,7.174e-05,2]
[28008,1774512230394,-476.36103394,7.174e-05,2]
[28009,1774512230790,-23.63896606,7.174e-05,2]
[28010,1774512230814,-500.0,7.174e-05,2]
[28011,1774512230837,-476.36103394,7.174e-05,2]
[28012,1774512231211,-23.63896606,7.174e-05,2]
[28013,1774512231234,-500.0,7.174e-05,2]
[28014,1774512231257,-476.36103394,7.174e-05,2]
[28015,1774512231658,-23.63896606,7.174e-05,2]
[28016,1774512231683,-337.60024158,7.174e-05,2]
[28017,1774512231708,-500.0,7.174e-05,2]
[28018,1774512231730,-138.76079236,7.174e-05,2]
[28019,1774512232098,-361.23920764,7.174e-05,2]
[28020,1774512232119,-500.0,7.174e-05,2]
[28021,1774512232140,-138.76079236,7.174e-05,2]
[28022,1774512232564,-236.23639678,7.174e-05,2]
[28023,1774512232585,-500.0,7.174e-05,2]
[28024,1774512232608,-263.76360322,7.174e-05,2]
[28025,1774512233076,-236.23639678,7.174e-05,2]
[28026,1774512233098,-402.3317035,7.174e-05,2]
[28027,1774512233120,-191.55784748,7.174e-05,2]
[28028,1774512233143,-169.87405224,7.174e-05,2]
[28029,1774512234739,-330.12594776,7.174e-05,2]
[28030,1774512234762,-500.0,7.174e-05,2]
[28031,1774512234785,-169.87405224,7.174e-05,2]
[28032,1774512235938,-330.12594776,7.174e-05,2]
[28033,1774512235961,-500.0,7.174e-05,2]
[28034,1774512235983,-169.87405224,7.174e-05,2]
[28035,1774512242442,-300.0,7.173e-05,2]
[28036,1774512242466,-300.0,7.174e-05,2]
[28037,1774512247545,-30.12594776,7.174e-05,2]
[28038,1774512247631,-193.5561134,7.174e-05,2]
[28039,1774512247656,-500.0,7.174e-05,2]
[28040,1774512247680,-276.31793884,7.174e-05,2]
[28041,1774512248400,-223.68206116,7.174e-05,2]
[28042,1774512248423,-500.0,7.174e-05,2]
[28043,1774512248448,-276.31793884,7.174e-05,2]
[28044,1774512248756,-223.68206116,7.174e-05,2]
[28045,1774512248779,-500.0,7.174e-05,2]
[28046,1774512248802,-276.31793884,7.174e-05,2]
[28047,1774512249189,-223.68206116,7.174e-05,2]
[28048,1774512249213,-500.0,7.174e-05,2]
[28049,1774512249237,-276.31793884,7.174e-05,2]
[28050,1774512249648,-223.68206116,7.174e-05,2]
[28051,1774512249673,-500.0,7.174e-05,2]
[28052,1774512249697,-276.31793884,7.174e-05,2]
[28053,1774512250115,-223.68206116,7.174e-05,2]
[28054,1774512250138,-500.0,7.174e-05,2]
[28055,1774512250162,-276.31793884,7.174e-05,2]
[28056,1774512250412,-223.68206116,7.174e-05,2]
[28057,1774512250436,-500.0,7.174e-05,2]
[28058,1774512250459,-276.31793884,7.174e-05,2]
[28059,1774512251870,-223.68206116,7.174e-05,2]
[28060,1774512251893,-500.0,7.174e-05,2]
[28061,1774512251917,-276.31793884,7.174e-05,2]
[28062,1774512252167,-223.68206116,7.174e-05,2]
[28063,1774512252190,-500.0,7.174e-05,2]
[28064,1774512252214,-276.31793884,7.174e-05,2]
[28065,1774512252572,-223.68206116,7.174e-05,2]
[28066,1774512252596,-500.0,7.174e-05,2]
[28067,1774512252620,-276.31793884,7.174e-05,2]
[28068,1774512255393,-223.68206116,7.174e-05,2]
[28069,1774512255416,-500.0,7.174e-05,2]
[28070,1774512255438,-276.31793884,7.174e-05,2]
[28071,1774512256687,-171.65906116,7.174e-05,2]
[28072,1774512256708,-828.34093884,7.175e-05,2]
[28073,1774512257876,-1000.0,7.175e-05,2]
[28074,1774512258989,-1000.0,7.175e-05,2]
[28205,1774512638553,-157.67777168,6.849e-05,2]
[28207,1774512638563,-520.0,7.03e-05,2]
[28209,1774512638572,-455.0158722,7.03e-05,2]
[28211,1774512638581,-4509.8685097,7.068e-05,2]
[28213,1774512638590,-1061.2772376,7.168e-05,2]
[28215,1774512638600,-300.0,7.174e-05,2]
[28217,1774512638609,-1200.0,7.174e-05,2]
[28219,1774512638618,-1770.81998068,7.175e-05,2]
[28222,1774512638627,-6007.06732346,7.175e-05,2]
[28224,1774512638637,-7602.69458125,7.175e-05,2]
[28226,1774512638647,-9386.0426929,7.175e-05,2]
[28229,1774512638656,-11357.11165841,7.175e-05,2]
[28231,1774512638665,-13502.3855763,7.175e-05,2]
[28233,1774512638674,-1000.0,7.175e-05,2]
[28236,1774512638684,-445.87638666,7.175e-05,2]
[28238,1774512638694,-2532.09245669,7.175e-05,2]
[28241,1774512638704,-1000.0,7.175e-05,2]
[28244,1774512638713,-276.46796527,7.175e-05,2]
[28248,1774512638725,-723.53203473,7.175e-05,2]
[28251,1774512638735,-1000.0,7.175e-05,2]
[28254,1774512638744,-298.85095648,7.175e-05,2]
[28256,1774512638755,-701.14904352,7.175e-05,2]
[28258,1774512638764,-987.65718052,7.175e-05,2]
[28260,1774512638774,-151.39325989,7.175e-05,2]
[28262,1774512638784,-3518.41277416,7.192e-05,2]
[28264,1774512638793,-5066.51439478,7.192e-05,2]
[28266,1774512638802,-6896.08903735,7.192e-05,2]
[28268,1774512638812,-9007.13670184,7.192e-05,2]
[28270,1774512638822,-1000.0,7.2e-05,2]
[28272,1774512638831,-1000.0,7.2e-05,2]
[28274,1774512638841,-1000.0,7.2e-05,2]
[28276,1774512638850,-1000.0,7.2e-05,2]
[28278,1774512638860,-1000.0,7.2e-05,2]
[28280,1774512638869,-300.0,7.295e-05,2]
[28282,1774512638878,-300.0,7.295e-05,2]
[28284,1774512638887,-300.0,7.295e-05,2]
[28286,1774512638896,-300.0,7.295e-05,2]
[28288,1774512638905,-300.0,7.295e-05,2]
[28290,1774512638914,-300.0,7.295e-05,2]
[28292,1774512638923,-300.0,7.295e-05,2]
[28294,1774512638932,-300.0,7.295e-05,2]
[28296,1774512638942,-300.0,7.295e-05,2]
[28298,1774512638950,-300.0,7.295e-05,2]
[28300,1774512638959,-300.0,7.295e-05,2]
[28302,1774512638968,-300.0,7.295e-05,2]
[28304,1774512638977,-300.0,7.295e-05,2]
[28306,1774512638986,-300.0,7.295e-05,2]
[28308,1774512638995,-300.0,7.295e-05,2]
[28310,1774512639003,-600.0,7.316e-05,2]